fUST/lending_fUST_20260320
["ID","MTS","AMOUNT","RATE_DAILY","PERIOD"]
[408617230,1773960647052,-500.0,5e-05,2]
[408617231,1773960647062,-500.0,5e-05,2]
[408617232,1773960647073,-500.0,5e-05,2]
[408617233,1773960647082,-500.0,5e-05,2]
[408617234,1773960647092,-500.0,5e-05,2]
[408617235,1773960647101,-500.0,5e-05,2]
[408617236,1773960647112,-500.0,5e-05,2]
[408617237,1773960647122,-7.43968779,5e-05,2]
[408617242,1773961611127,-206.29728616,3.93e-05,2]
[408617263,1773961832036,-2723.02111255,3.813e-05,2]
[408617264,1773961832050,-806.47835367,3.813e-05,2]
[408617265,1773961832065,-5000.0,3.852e-05,2]
[408617266,1773961832081,-1200.0,3.89e-05,2]
[408617267,1773961832091,-187.632526,4.259e-05,2]
[408617268,1773961832100,-300.0,4.496e-05,2]
[408617270,1773961832110,-300.0,4.496e-05,2]
[408617271,1773961832120,-222.59414727,4.501e-05,2]
[408617272,1773961832130,-641.0,4.601e-05,2]
[408617273,1773961832139,-2189.0,4.601e-05,2]
[408617274,1773961832148,-183.0,4.601e-05,2]
[408617275,1773961832157,-438.0,4.601e-05,2]
[408617276,1773961832166,-500.0,4.673e-05,2]
[408617277,1773961832175,-500.0,4.673e-05,2]
[408617278,1773961832184,-500.0,4.673e-05,2]
[408617279,1773961832193,-500.0,4.673e-05,2]
[408617280,1773961832202,-300.0,4.692e-05,2]
[408617281,1773961832219,-300.0,4.692e-05,2]
[408617282,1773961832229,-300.0,4.692e-05,2]
[408617283,1773961832238,-300.0,4.692e-05,2]
[408617284,1773961832249,-300.0,4.692e-05,2]
[408617286,1773961832259,-300.0,4.692e-05,2]
[408617288,1773961832268,-300.0,4.692e-05,2]
[408617290,1773961832278,-300.0,4.692e-05,2]
[408617292,1773961832287,-300.0,4.692e-05,2]
[408617294,1773961832296,-300.0,4.692e-05,2]
[408617296,1773961832305,-300.0,4.692e-05,2]
[408617298,1773961832319,-300.0,4.692e-05,2]
[408617300,1773961832328,-300.0,4.692e-05,2]
[408617302,1773961832337,-300.0,4.692e-05,2]
[408617304,1773961832346,-300.0,4.692e-05,2]
[408617306,1773961832358,-32743.0776448,4.7e-05,2]
[408617309,1773961832369,-565.876,4.7e-05,2]
[408617311,1773961832381,-670.94,4.7e-05,2]
[408617313,1773961832392,-3180.59923227,4.7e-05,2]
[408617404,1773961838183,-31877.47375963,4.7e-05,2]
[408617413,1773961840569,-876.23651836,4.7e-05,2]
[408617429,1773961843475,-1041.66666667,4.653e-05,2]
[408617430,1773961843486,-1801.41093038,4.653e-05,2]
[408617446,1773961846206,-2156.92240295,4.653e-05,2]
[408617447,1773961846215,-42225.59912513,4.7e-05,2]
[408617448,1773961846226,-9856.03930195,4.7e-05,2]
[408617455,1773962802120,-283.30045064,4.359e-05,2]
[408617456,1773962810593,291.8563578,1.792e-05,2]
[408617524,1773963032292,-5000.0,4.427e-05,2]
[408617526,1773963032302,-1200.0,4.472e-05,2]
[408617528,1773963032311,-500.0,4.473e-05,2]
[408617530,1773963032321,-351.0,4.473e-05,2]
[408617532,1773963032333,-149.0,4.473e-05,2]
[408617534,1773963032343,-300.0,4.497e-05,2]
[408617536,1773963032354,-300.0,4.497e-05,2]
[408617538,1773963032364,-300.0,4.498e-05,2]
[408617540,1773963032374,-300.0,4.498e-05,2]
[408617542,1773963032383,-16085.85362885,4.5e-05,2]
[408617599,1773963038317,-1916.51876848,4.455e-05,2]
[408617600,1773963038327,-221644.95556642,4.5e-05,2]
[408617602,1773963038404,-330.21954487,4.5e-05,2]
[408617606,1773963040789,-1628.58954413,4.5e-05,2]
[408617608,1773963040809,-1226.30066951,4.5e-05,2]
[408617610,1773963040820,-1061.69153269,4.5e-05,2]
[408617612,1773963040832,-728.46822542,4.5e-05,2]
[408617634,1773963043810,-418.93857618,4.5e-05,2]
[408617638,1773963046576,-282.252,4.455e-05,2]
[408617639,1773963046586,-343479.82519272,4.5e-05,2]
[408617640,1773963046597,-366.0,4.5e-05,2]
[408617641,1773963046610,-11235.23966357,4.5e-05,2]
[408617642,1773963046621,-1674.91654879,4.5e-05,2]
[408617708,1773964232549,-5000.0,3.154e-05,2]
[408617710,1773964232558,-302.73848456,3.186e-05,2]
[408617712,1773964232567,-218.9579087,3.286e-05,2]
[408617714,1773964232576,-166.278559,4.167e-05,2]
[408617716,1773964232586,-300.0,4.272e-05,2]
[408617718,1773964232595,-300.0,4.272e-05,2]
[408617720,1773964232604,-1200.0,4.272e-05,2]
[408617722,1773964232613,-500.0,4.273e-05,2]
[408617724,1773964232622,-210.99669941,4.273e-05,2]
[408617726,1773964232633,-282.252,4.273e-05,2]
[408617728,1773964232645,-6.75130059,4.273e-05,2]
[408617730,1773964232654,-500.0,4.273e-05,2]
[408617732,1773964232663,-92.60111738,4.273e-05,2]
[408617765,1773964238629,-407.39888262,4.273e-05,2]
[408617767,1773964238643,-500.0,4.273e-05,2]
[408617769,1773964238652,-2117.44458687,4.3e-05,2]
[408617771,1773964238663,-70000.0,4.3e-05,2]
[408617773,1773964238675,-20814.99999965,4.3e-05,2]
[408617776,1773964238686,-292.50493676,4.3e-05,2]
[408617778,1773964238697,-283.408,4.3e-05,2]
[408617780,1773964238707,-1447.62442233,4.3e-05,2]
[408617829,1773964243759,-63025.0283725,4.3e-05,2]
[408617830,1773964243804,-18121.95621869,4.3e-05,2]
[408617865,1773964252314,-12507.9112656,4.3e-05,2]
[408617866,1773964252325,-3499.07532696,4.3e-05,2]
[408617877,1773964950745,200.0,7.348e-05,120]
[408617881,1773965190468,200.0,7.539e-05,120]
[408617882,1773965191122,-213.99760261,4e-05,2]
[408617907,1773965431810,-867.53430758,3.92e-05,2]
[408618019,1773965437859,-714.9627648,3.92e-05,2]
[408618020,1773965437871,-2222.98252185,3.92e-05,2]
[408618021,1773965437880,-300.0,3.999e-05,2]
[408618022,1773965437888,-1113.0,3.999e-05,2]
[408618023,1773965437897,-20686.10978215,4e-05,2]
[408618024,1773965437908,-1155.78600943,4e-05,2]
[408618025,1773965437919,-789.29601842,4e-05,2]
[408618043,1773965442830,-1114.15037311,4e-05,2]
[408618048,1773965446181,-1863.03158687,4e-05,2]
[408618049,1773965446192,-13129.90254233,4e-05,2]
[408618050,1773965446202,-500.0,4.073e-05,2]
[408618051,1773965446211,-500.0,4.073e-05,2]
[408618052,1773965446220,-500.0,4.073e-05,2]
[408618053,1773965446229,-500.0,4.073e-05,2]
[408618054,1773965446240,-500.0,4.073e-05,2]
[408618055,1773965446249,-200434.75411376,4.1e-05,2]
[408618056,1773965446260,-10091.94208144,4.1e-05,2]
[408618067,1773966399123,-276.37016584,3.359e-05,2]
[408618099,1773966631904,-366.82802324,3.292e-05,2]
[408618143,1773966638289,-4633.17197676,3.292e-05,2]
[408618144,1773966638300,-180.135105,3.393e-05,2]
[408618145,1773966638311,-180.135105,3.631e-05,2]
[408618146,1773966638320,-180.135105,3.87e-05,2]
[408618147,1773966638330,-197.0,3.897e-05,2]
[408618148,1773966638339,-300.0,3.897e-05,2]
[408618149,1773966638348,-300.0,3.897e-05,2]
[408618150,1773966638357,-878.74118161,3.897e-05,2]
[408618157,1773966640527,-69.25881839,3.897e-05,2]
[408618158,1773966640536,-300.0,3.897e-05,2]
[408618159,1773966640545,-10.46453995,4.108e-05,2]
[408618160,1773966640556,-169.67056505,4.108e-05,2]
[408618161,1773966640565,-1050.8721351,4.19e-05,2]
[408618162,1773966640575,-600.0,4.283e-05,2]
[408618163,1773966640584,-2813.0539909,4.31e-05,2]
[408618164,1773966640594,-160.0,4.38e-05,3]
[408618165,1773966640604,-160.28047513,4.38e-05,5]
[408618166,1773966640613,-273.941,4.492e-05,2]
[408618167,1773966640627,-518.911,4.492e-05,2]
[408618168,1773966640637,-438.0,4.492e-05,2]
[408618169,1773966640647,-183.0,4.492e-05,2]
[408618170,1773966640656,-209.457,4.5e-05,2]
[408618171,1773966640667,-390.31734773,4.7e-05,2]
[408618172,1773966640683,-233.10085665,4.7e-05,2]
[408618173,1773966640693,-968.3177528,4.749e-05,2]
[408618174,1773966640704,-591.51813598,4.749e-05,2]
[408618196,1773966643129,-590.90211122,4.749e-05,2]
[408618198,1773966643139,-500.0,4.873e-05,2]
[408618200,1773966643148,-500.0,4.873e-05,2]
[408618202,1773966643158,-500.0,4.873e-05,2]
[408618204,1773966643167,-162.380719,4.897e-05,2]
[408618206,1773966643176,-151.0,4.897e-05,2]
[408618208,1773966643186,-537.6845,4.897e-05,2]
[408618210,1773966643196,-583.99668615,4.897e-05,2]
[408618212,1773966643205,-162.380719,4.897e-05,2]
[408618214,1773966643215,-3957.45696295,4.9e-05,2]
[408618216,1773966643226,-5098.51023176,4.9e-05,2]
[408618219,1773966643237,-2888.27003825,4.9e-05,2]
[408618221,1773966643249,-3500.0,4.9e-05,2]
[408618223,1773966643260,-12467.90084128,4.9e-05,2]
[408618225,1773966643271,-37736.31789411,4.9e-05,2]
[408618249,1773966646206,-2088.0,4.9e-05,2]
[408618250,1773966646219,-253.7425319,4.9e-05,2]
[408618251,1773966646232,-8527.55368979,4.9e-05,2]
[408618252,1773966646243,-14735.0,4.9e-05,2]
[408618253,1773966646254,-11400.91257509,4.9e-05,2]
[408618281,1773967832081,-368.495,3.93e-05,2]
[408618283,1773967832092,-455.37603996,3.93e-05,2]
[408618290,1773967838143,-2189.01973514,3.93e-05,2]
[408618291,1773967838163,-1987.1092249,3.93e-05,2]
[408618292,1773967838173,-5000.0,3.97e-05,2]
[408618293,1773967838183,-1200.0,4.05e-05,2]
[408618296,1773967838193,-300.0,4.128e-05,2]
[408618297,1773967838202,-300.0,4.128e-05,2]
[408618298,1773967838211,-438.0,4.435e-05,2]
[408618299,1773967838221,-183.0,4.435e-05,2]
[408618300,1773967838230,-161.67104768,4.471e-05,2]
[408618301,1773967838240,-454.81547,4.599e-05,2]
[408618302,1773967838249,-500.0,4.673e-05,2]
[408618303,1773967838259,-500.0,4.673e-05,2]
[408618304,1773967838268,-8167.09611531,4.7e-05,2]
[408618307,1773967840537,-301.18863721,4.7e-05,2]
[408618317,1773967843168,-359.66901507,4.7e-05,2]
[408618318,1773967843276,-2069.36148718,4.7e-05,2]
[408618319,1773967843288,-2029.20787857,4.7e-05,2]
[408618324,1773967846334,-32610.72696116,4.7e-05,2]
[408618325,1773967846388,-9900.0,4.7e-05,2]
[408618330,1773968792124,-220.23485893,4.26e-05,2]
[408618354,1773969032269,-367.56891035,4.175e-05,2]
[408618356,1773969032281,-3446.76645159,4.175e-05,2]
[408618472,1773969043552,-1185.66463806,4.175e-05,2]
[408618473,1773969043574,-183.0,4.435e-05,2]
[408618474,1773969043586,-438.0,4.435e-05,2]
[408618475,1773969043594,-500.0,4.473e-05,2]
[408618476,1773969043603,-500.0,4.473e-05,2]
[408618477,1773969043613,-500.0,4.473e-05,2]
[408618479,1773969043622,-500.0,4.473e-05,2]
[408618480,1773969043632,-1871.31065439,4.5e-05,2]
[408618481,1773969043695,-806.99127554,4.5e-05,2]
[408618486,1773969046696,-10876.16515558,4.5e-05,2]
[408618492,1773969371278,486.0,8.4e-05,120]
[408618496,1773969994511,-270.75663515,4.2e-05,2]
[408618542,1773970232598,-535.43668111,4.059e-05,2]
[408618616,1773970246702,-800.0,4.059e-05,2]
[408618618,1773970246714,-3664.56331889,4.059e-05,2]
[408618620,1773970246724,-5054.76755755,4.1e-05,2]
[408618622,1773970246734,-62216.43685608,4.2e-05,2]
[408618624,1773970246745,-3987.28165431,4.2e-05,2]
[408618648,1773971365540,-3947.6321819,2.929e-05,2]
[408618732,1773971437843,-781.51472314,2.801e-05,2]
[408618733,1773971437896,-2892.57182368,2.801e-05,2]
[408618734,1773971437951,-1325.91345318,2.801e-05,2]
[408618736,1773971437961,-3505.96547128,2.829e-05,2]
[408618738,1773971437971,-188.25,2.989e-05,2]
[408618740,1773971437981,-734.15789083,3.9e-05,2]
[408618741,1773971437990,-10832.90234519,3.9e-05,2]
[408618742,1773971437999,-300.0,3.972e-05,2]
[408618743,1773971438009,-1200.0,3.972e-05,2]
[408618744,1773971438019,-500.0,3.973e-05,2]
[408618745,1773971438028,-500.0,3.973e-05,2]
[408618746,1773971438037,-570.17837997,3.973e-05,2]
[408618747,1773971438046,-500.0,3.973e-05,2]
[408618748,1773971438056,-500.0,3.973e-05,2]
[408618749,1773971438065,-58893.89779175,4e-05,2]
[408618750,1773971438082,-2507.84039351,4e-05,2]
[408618751,1773971438094,-12049.00346734,4e-05,2]
[408618752,1773971438105,-5505.95516385,4e-05,2]
[408618755,1773971440263,-1175.66510949,4e-05,2]
[408618758,1773971440318,-4079.77539857,4e-05,2]
[408618777,1773971442788,-869.57881063,4e-05,2]
[408618779,1773971442800,-22842.15621358,4e-05,2]
[408618790,1773971442895,-433.51392322,4e-05,2]
[408618796,1773971442949,-1504.3502,4e-05,2]
[408618798,1773971442960,-11630.40653604,4e-05,2]
[408618801,1773971442971,-1012.15324198,4e-05,2]
[408618803,1773971442982,-6560.50386647,4e-05,2]
[408618815,1773971446137,-84563.18936656,4e-05,2]
[408618817,1773972043354,-167.63743,3.613e-05,2]
[408618823,1773972400127,-169.2795372,2.574e-05,2]
[408618824,1773972400147,-56.00749935,3.022e-05,2]
[408618827,1773972546069,-2488.04429517,2.524e-05,2]
[408618828,1773972546090,-2411.95570483,2.549e-05,2]
[408618837,1773972631870,-903.68637369,2.524e-05,2]
[408618913,1773972637981,-1200.0,2.524e-05,2]
[408618918,1773972640339,-452.28667416,2.524e-05,2]
[408618924,1773972643158,-396.54944253,2.524e-05,2]
[408618928,1773972646174,-36.4801525,2.524e-05,2]
[408618929,1773972646186,-2010.99735712,2.524e-05,2]
[408618930,1773972646196,-185.123514,3.084e-05,2]
[408618931,1773972646205,-185.123514,3.3e-05,2]
[408618932,1773972646215,-161.96979513,3.399e-05,2]
[408618933,1773972646224,-1628.58954413,3.5e-05,2]
[408618934,1773972646234,-185.123514,3.517e-05,2]
[408618935,1773972646244,-500.0,3.573e-05,2]
[408618936,1773972646511,-416.24663852,3.573e-05,2]
[408618937,1773972646523,-83.75336148,3.573e-05,2]
[408618938,1773972646532,-500.0,3.573e-05,2]
[408618939,1773972646542,-300.0,3.599e-05,2]
[408618940,1773972646552,-1200.0,3.599e-05,2]
[408618941,1773972646561,-3554.60129024,3.6e-05,2]
[408618943,1773972831957,222.0,8.4e-05,120]
[408618951,1773973486992,150.0,3.898e-05,10]
[408618955,1773973619094,-356.20967529,2.111e-05,2]
[408618956,1773973644503,-4643.79032471,2.111e-05,2]
[408618957,1773973644524,-302.73848456,2.154e-05,2]
[408618958,1773973644545,-1064.08411433,2.3e-05,2]
[408618959,1773973644566,-1262.47117222,2.424e-05,2]
[408618991,1773973832059,-769.02934349,3.034e-05,2]
[408619050,1773973838172,-4230.97065651,3.034e-05,2]
[408619051,1773973838183,-1463.55457248,3.065e-05,2]
[408619052,1773973838192,-218.9669327,3.096e-05,2]
[408619053,1773973838202,-300.0,3.461e-05,2]
[408619054,1773973838212,-300.0,3.461e-05,2]
[408619055,1773973838227,-1200.0,3.461e-05,2]
[408619056,1773973838237,-5000.0,3.462e-05,2]
[408619057,1773973838247,-185.123514,3.733e-05,2]
[408619058,1773973838256,-420.0,3.807e-05,2]
[408619059,1773973838266,-1680.0,3.807e-05,2]
[408619060,1773973838275,-338.5790537,3.867e-05,2]
[408619061,1773973838285,-385.2400094,3.885e-05,2]
[408619062,1773973838294,-555.0,3.885e-05,2]
[408619063,1773973838304,-7739.1410019,3.885e-05,2]
[408619064,1773973838314,-555.0,3.959e-05,2]
[408619065,1773973838323,-151.0,4.021e-05,2]
[408619066,1773973838333,-555.0,4.041e-05,2]
[408619067,1773973838343,-585.0,4.188e-05,2]
[408619068,1773973838353,-866.0,4.188e-05,2]
[408619069,1773973838364,-555.742,4.306e-05,2]
[408619070,1773973838374,-186.443,4.306e-05,2]
[408619071,1773973838384,-443.828,4.306e-05,2]
[408619072,1773973838394,-7739.1410019,4.365e-05,2]
[408619073,1773973838403,-500.0,4.433e-05,2]
[408619074,1773973838413,-500.0,4.433e-05,2]
[408619075,1773973838423,-500.0,4.433e-05,2]
[408619076,1773973838433,-500.0,4.433e-05,2]
[408619077,1773973838442,-28673.89077326,4.456e-05,2]
[408619078,1773973838455,-809.1031,4.456e-05,2]
[408619079,1773973838467,-53575.38157506,4.456e-05,2]
[408619083,1773973840601,-841.52588397,4.456e-05,2]
[408619085,1773973840656,-1692.7,4.456e-05,2]
[408619095,1773973843251,-398.45065381,4.456e-05,2]
[408619117,1773973843461,-39.57885281,4.456e-05,2]
[408619119,1773973843473,-6630.6594506,4.456e-05,2]
[408619121,1773973843485,-302.62139999,4.456e-05,2]
[408619123,1773973843496,-4587.0657763,4.456e-05,2]
[408619124,1773973843509,-2218.61898699,4.456e-05,2]
[408619125,1773973843521,-2459.88076605,4.456e-05,2]
[408619138,1773973846339,-109641.03216529,4.456e-05,2]
[408619139,1773973846353,-983.43426962,4.456e-05,2]
[408619140,1773973846365,-17358.80346027,4.456e-05,2]
[408619141,1773973846397,-3422.07951184,4.456e-05,2]
[408619178,1773975032284,-438.23496928,3.708e-05,2]
[408619180,1773975032297,-661.76503072,3.708e-05,2]
[408619182,1773975032308,-1438.61216221,3.745e-05,2]
[408619184,1773975032319,-1006.81783792,3.745e-05,2]
[408619187,1773975032336,-2554.56999987,3.745e-05,2]
[408619189,1773975032345,-196.935235,3.953e-05,2]
[408619191,1773975032355,-1200.0,4.098e-05,2]
[408619193,1773975032364,-300.0,4.099e-05,2]
[408619195,1773975032374,-300.0,4.099e-05,2]
[408619197,1773975032383,-258.0,4.099e-05,2]
[408619199,1773975032393,-5000.0,4.1e-05,2]
[408619201,1773975032402,-160.0,4.288e-05,2]
[408619203,1773975032412,-183.0,4.354e-05,2]
[408619205,1773975032421,-438.0,4.354e-05,2]
[408619207,1773975032430,-196.935235,4.369e-05,2]
[408619209,1773975032439,-500.0,4.42e-05,2]
[408619211,1773975032449,-150.116,4.469e-05,2]
[408619212,1773975032458,-150.115,4.469e-05,2]
[408619214,1773975032467,-150.0,4.469e-05,2]
[408619216,1773975032477,-150.116,4.469e-05,2]
[408619218,1773975032486,-151.474,4.469e-05,2]
[408619219,1773975032496,-2150.738,4.61e-05,2]
[408619220,1773975032505,-270.75663515,4.773e-05,2]
[408619221,1773975032515,-58.85163036,4.785e-05,2]
[408619229,1773975038352,-138.08360464,4.785e-05,2]
[408619230,1773975038362,-1000.0,4.8e-05,2]
[408619231,1773975038372,-22.14422661,4.83e-05,3]
[408619241,1773975040867,-137.85577339,4.83e-05,3]
[408619242,1773975040878,-160.36643861,4.83e-05,5]
[408619243,1773975040888,-500.0,4.853e-05,2]
[408619244,1773975040898,-500.0,4.853e-05,2]
[408619245,1773975040908,-500.0,4.853e-05,2]
[408619246,1773975040920,-199.51517963,4.87e-05,2]
[408619247,1773975040931,-151.0,4.87e-05,2]
[408619248,1773975040942,-537.6845,4.87e-05,2]
[408619249,1773975040952,-162.380719,4.87e-05,2]
[408619250,1773975040961,-2651.22069837,4.873e-05,2]
[408619251,1773975040973,-5059.02002272,4.873e-05,2]
[408619252,1773975040985,-1187.0816595,4.873e-05,2]
[408619255,1773975043591,-5233.88109999,4.873e-05,2]
[408619256,1773975043602,-17838.77939984,4.873e-05,2]
[408619263,1773975046732,-44528.94545538,4.873e-05,2]
[408619265,1773975642790,-1240.20366487,4.265e-05,2]
[408619275,1773976144627,1065.0,2e-05,2]
[408619408,1773976241129,-3974.47067958,4.264e-05,2]
[408619409,1773976241142,-1025.52932042,4.264e-05,2]
[408619410,1773976241155,-155.173,4.396e-05,2]
[408619411,1773976241167,-150.0,4.396e-05,2]
[408619412,1773976241178,-438.0,4.465e-05,2]
[408619413,1773976241188,-183.0,4.465e-05,2]
[408619414,1773976241199,-500.0,4.465e-05,2]
[408619415,1773976241210,-160.0,4.525e-05,2]
[408619416,1773976241219,-413.34937358,4.566e-05,2]
[408619417,1773976241233,-747.65062642,4.566e-05,2]
[408619418,1773976241244,-300.0,4.567e-05,2]
[408619419,1773976241254,-152.34937358,4.568e-05,2]
[408619430,1773976246622,-6941.10724371,4.568e-05,2]
[408619431,1773976246637,-5066.23582551,4.568e-05,2]
[408619432,1773976246647,-500.0,4.653e-05,2]
[408619433,1773976246657,-500.0,4.653e-05,2]
[408619434,1773976246667,-500.0,4.653e-05,2]
[408619435,1773976246677,-500.0,4.653e-05,2]
[408619436,1773976246687,-151.0,4.67e-05,2]
[408619437,1773976246696,-537.6845,4.67e-05,2]
[408619438,1773976246706,-162.380719,4.67e-05,2]
[408619439,1773976246716,-2150.738,4.67e-05,2]
[408619440,1773976246726,-3557.71820923,4.673e-05,2]
[408619441,1773976246884,-121888.17898306,4.673e-05,2]
[408619478,1773977431645,-2598.50473445,4.242e-05,2]
[408619481,1773977431659,-425.97873272,4.242e-05,2]
[408619559,1773977437745,-1975.51653283,4.242e-05,2]
[408619560,1773977437755,-103.03476681,4.372e-05,2]
[408619561,1773977437799,-196.96523319,4.372e-05,2]
[408619563,1773977437810,-300.0,4.372e-05,2]
[408619564,1773977437823,-300.0,4.372e-05,2]
[408619565,1773977437832,-1200.0,4.372e-05,2]
[408619566,1773977437843,-42792.62833811,4.373e-05,2]
[408619567,1773977437853,-500.0,4.453e-05,2]
[408619568,1773977437863,-500.0,4.453e-05,2]
[408619569,1773977437872,-181.41310107,4.453e-05,2]
[408619570,1773977437883,-500.0,4.453e-05,2]
[408619571,1773977437895,-500.0,4.453e-05,2]
[408619572,1773977437904,-500.0,4.453e-05,2]
[408619573,1773977437914,-500.0,4.461e-05,2]
[408619574,1773977437926,-733498.30177482,4.473e-05,2]
[408619575,1773977437935,-183.0,4.506e-05,2]
[408619576,1773977437945,-438.0,4.506e-05,2]
[408619577,1773977437955,-209.13292701,4.526e-05,2]
[408619578,1773977437965,-160.0,4.535e-05,2]
[408619579,1773977437975,-160.0,4.58e-05,2]
[408619580,1773977437984,-160.0,4.58e-05,2]
[408619581,1773977437995,-151.0,4.58e-05,2]
[408619582,1773977438006,-537.6845,4.58e-05,2]
[408619583,1773977438016,-162.380719,4.58e-05,2]
[408619584,1773977438026,-2150.738,4.58e-05,2]
[408619585,1773977438035,-160.0,4.65e-05,2]
[408619586,1773977438045,-160.0,4.65e-05,2]
[408619587,1773977438055,-500.0,4.7e-05,2]
[408619588,1773977438065,-3980.0198411,4.721e-05,2]
[408619589,1773977438074,-3161.2025534,4.721e-05,2]
[408619590,1773977438085,-1420.16170361,4.9e-05,2]
[408619591,1773977438096,-500.62330823,4.9e-05,2]
[408619592,1773977438106,-555.0,4.973e-05,2]
[408619593,1773977438116,-555.0,4.973e-05,2]
[408619594,1773977438126,-544.0,4.973e-05,2]
[408619595,1773977438136,-600.0,4.997e-05,2]
[408619596,1773977438146,-1000.0,5e-05,2]
[408619597,1773977438156,-500.0,5e-05,2]
[408619598,1773977438166,-500.0,5e-05,2]
[408619599,1773977438176,-374.87202793,5e-05,2]
[408619600,1773977438185,-500.0,5e-05,2]
[408619601,1773977438195,-500.0,5e-05,2]
[408619602,1773977438205,-500.0,5e-05,2]
[408619603,1773977438214,-500.0,5e-05,2]
[408619604,1773977438224,-500.0,5e-05,2]
[408619605,1773977438233,-500.0,5e-05,2]
[408619606,1773977438243,-500.0,5e-05,2]
[408619607,1773977438253,-500.0,5e-05,2]
[408619608,1773977438263,-500.0,5e-05,2]
[408619609,1773977438273,-500.0,5e-05,2]
[408619610,1773977438283,-500.0,5e-05,2]
[408619611,1773977438293,-500.0,5e-05,2]
[408619612,1773977438303,-500.0,5e-05,2]
[408619613,1773977438312,-500.0,5e-05,2]
[408619614,1773977438323,-500.0,5e-05,2]
[408619615,1773977438332,-500.0,5e-05,2]
[408619616,1773977438342,-500.0,5e-05,2]
[408619617,1773977438351,-500.0,5e-05,2]
[408619618,1773977438361,-500.0,5e-05,2]
[408619619,1773977438371,-500.0,5e-05,2]
[408619620,1773977438381,-500.0,5e-05,2]
[408619621,1773977438391,-500.0,5e-05,2]
[408619622,1773977438401,-500.0,5e-05,2]
[408619623,1773977438411,-500.0,5e-05,2]
[408619624,1773977438421,-500.0,5e-05,2]
[408619625,1773977438431,-500.0,5e-05,2]
[408619626,1773977438440,-500.0,5e-05,2]
[408619627,1773977438450,-500.0,5e-05,2]
[408619628,1773977438459,-500.0,5e-05,2]
[408619629,1773977438469,-500.0,5e-05,2]
[408619630,1773977438480,-500.0,5e-05,2]
[408619631,1773977438489,-500.0,5e-05,2]
[408619632,1773977438500,-500.0,5e-05,2]
[408619633,1773977438510,-500.0,5e-05,2]
[408619634,1773977438519,-500.0,5e-05,2]
[408619635,1773977438541,-500.0,5e-05,2]
[408619636,1773977438559,-500.0,5e-05,2]
[408619637,1773977438578,-500.0,5e-05,2]
[408619638,1773977438591,-500.0,5e-05,2]
[408619639,1773977438608,-500.0,5e-05,2]
[408619640,1773977438623,-500.0,5e-05,2]
[408619641,1773977438639,-500.0,5e-05,2]
[408619642,1773977438654,-500.0,5e-05,2]
[408619643,1773977438670,-500.0,5e-05,2]
[408619644,1773977438685,-500.0,5e-05,2]
[408619645,1773977438702,-500.0,5e-05,2]
[408619646,1773977438716,-500.0,5e-05,2]
[408619647,1773977438730,-500.0,5e-05,2]
[408619648,1773977438743,-500.0,5e-05,2]
[408619649,1773977438758,-500.0,5e-05,2]
[408619650,1773977438774,-500.0,5e-05,2]
[408619651,1773977438788,-500.0,5e-05,2]
[408619652,1773977438801,-500.0,5e-05,2]
[408619653,1773977438813,-500.0,5e-05,2]
[408619654,1773977438827,-500.0,5e-05,2]
[408619655,1773977438842,-500.0,5e-05,2]
[408619656,1773977438856,-500.0,5e-05,2]
[408619657,1773977438872,-500.0,5e-05,2]
[408619658,1773977438893,-500.0,5e-05,2]
[408619659,1773977438909,-500.0,5e-05,2]
[408619660,1773977438924,-500.0,5e-05,2]
[408619661,1773977438936,-500.0,5e-05,2]
[408619662,1773977438947,-500.0,5e-05,2]
[408619663,1773977438961,-500.0,5e-05,2]
[408619664,1773977438977,-500.0,5e-05,2]
[408619665,1773977438992,-500.0,5e-05,2]
[408619666,1773977439006,-500.0,5e-05,2]
[408619667,1773977439017,-500.0,5e-05,2]
[408619668,1773977439030,-500.0,5e-05,2]
[408619669,1773977439045,-500.0,5e-05,2]
[408619670,1773977439060,-500.0,5e-05,2]
[408619671,1773977439074,-500.0,5e-05,2]
[408619672,1773977439086,-500.0,5e-05,2]
[408619673,1773977439099,-500.0,5e-05,2]
[408619674,1773977439111,-500.0,5e-05,2]